[Event "6th Tulsi Lal Memorial NTCC 2080"]
[Site "Lalitpur"]
[Date "2024.01.11"]
[Round "7.6"]
[White "Das, Singhesor"]
[Black "Maharjan, Suroj"]
[Result "1-0"]
[ECO "B07"]
[WhiteElo "1873"]
[BlackElo "1832"]
[Annotator "NA RC COMBH"]
[PlyCount "117"]
[EventDate "2024.01.03"]
[EventType "team-tourn"]
[EventCountry "NEP"]
[SourceTitle "playchess.com"]
[Source "ChessBase"]
[SourceQuality "1"]
[TimeControl "5400+30"]

1. e4 {[%emt 0:00:48]} d6 {[%emt 0:01:15]} 2. d4 {[%emt 0:00:25]} Nf6 {[%emt 0:00:58]} 3. Nc3 {[%emt 0:00:39]} c6 {[%emt 0:00:05]} 4. Nf3 {[%emt 0:00:45]} Bg4 {[%emt 0:02:23]} 5. Be2 {[%emt 0:00:39]} Nbd7 {[%emt 0:00:11]} 6. O-O {[%emt 0:00:09]} e5 {[%emt 0:00:51]} 7. Be3 {[%emt 0:03:43]} Be7 {[%emt 0:02:32]} 8. Qd2 {[%emt 0:01:37]} Qc7 {[%emt 0:00:48]} 9. h3 {[%emt 0:07:16]} Bh5 {[%emt 0:03:42]} 10. dxe5 {[%emt 0:11:43]} dxe5 {[%emt 0:03:11]} 11. a3 {[%emt 0:00:31]} (11. Nh4 $11) 11... Rd8 {[%emt 0:03:13]} 12. Qe1 {[%emt 0:00:32]} a5 {[%emt 0:00:28]} (12... Bc5 $142) 13. Nd2 {[%emt 0:05:32]} Bg6 {[%emt 0:04:15]} 14. f3 {[%emt 0:00:26]} Nh5 {[%emt 0:00:18]} 15. Kh2 {[%emt 0:00:57]} O-O {[%emt 0:01:46]} 16. Rd1 {[%emt 0:00:18]} Nc5 {[%emt 0:02:54]} 17. Qf2 {[%emt 0:00:55]} Nd7 {[%emt 0:03:45]} 18. Nc4 {[%emt 0:03:22]} b5 {[%emt 0:01:32]} 19. g4 {[%emt 0:06:01]} (19. Nb6 $14 {stays ahead.}) 19... bxc4 {[%emt 0:02:32]} 20. gxh5 {[%emt 0:54:12]} Bxh5 {[%emt 1:03:51]} 21. Bxc4 {[%emt 0:00:00]} Rb8 {[%emt 0:00:00]} 22. Na4 {[%emt 0:00:00]} Nf6 {[%emt 0:00:00]} 23. Bb6 {[%emt 0:00:00]} Qc8 {[%emt 0:00:00]} 24. Bxa5 {[%emt 0:00:00]} Bg6 {[%emt 0:00:00]} 25. Bc3 {[%emt 0:00:00]} Qc7 {[%emt 0:00:00]} 26. Nc5 {[%emt 0:00:00]} Ra8 {[%emt 0:00:00]} 27. Nd3 {[%emt 0:00:00]} Bd6 {[%emt 0:00:00]} 28. Qh4 {[%emt 0:00:00]} Rfe8 {[%emt 0:00:00]} 29. Qg5 {[%emt 0:00:00]} Kh8 {[%emt 0:00:00]} 30. Rg1 {[%emt 0:00:00]} Ra4 {[%emt 0:00:00]} 31. Bb3 {[%emt 0:00:00]} Rxe4 {[%emt 0:00:00]} 32. fxe4 {[%emt 0:00:00]} Nxe4 {[%emt 0:00:00]} 33. Qe3 {[%emt 0:00:00]} Nxc3 {[%emt 0:00:00]} 34. bxc3 {[%emt 0:00:00]} c5 {[%emt 0:00:00]} 35. Nf2 {[%emt 0:00:00]} e4+ {[%emt 0:00:00]} 36. Rxd6 {[%emt 0:00:00]} Qxd6+ {[%emt 0:00:00]} 37. Qg3 {[%emt 0:00:00]} Qd2 {[%emt 0:00:00]} 38. Bxf7 {[%emt 0:00:00]} Rf8 $18 {[%emt 0:00:00]} 39. Rg2 {[%emt 0:00:00]} e3 {[%emt 0:00:00]} 40. Ne4 {[%emt 0:00:00]} Qxg2+ {[%emt 0:00:00]} 41. Qxg2 {[%emt 0:00:00]} Rxf7 {[%emt 0:00:00]} 42. Kg1 {[%emt 0:00:00]} Re7 {[%emt 0:00:00]} 43. Ng3 {[%emt 0:00:00]} h6 {[%emt 0:00:00]} 44. Qe2 {[%emt 0:00:00]} Re5 {[%emt 0:00:00]} 45. Kg2 {[%emt 0:00:00]} c4 {[%emt 0:00:00]} 46. Kf3 {[%emt 0:00:00]} Kh7 {[%emt 0:00:00]} 47. Kf4 {[%emt 0:00:00]} Re8 {[%emt 0:00:00]} 48. Nf1 {[%emt 0:00:00]} Rf8+ {[%emt 0:00:00]} 49. Ke5 {[%emt 0:00:00]} Rf2 {[%emt 0:00:00]} 50. Qe1 {[%emt 0:00:38]} Rf5+ {[%emt 0:00:00]} 51. Kd4 {[%emt 0:00:39]} Rf4+ {[%emt 0:00:00]} 52. Kc5 {[%emt 0:00:33]} Bxc2 {[%emt 0:00:00]} 53. Nxe3 {[%emt 0:00:36]} Bd3 {[%emt 0:00:00]} 54. a4 {[%emt 0:00:16]} Rf7 {[%emt 0:00:00]} 55. a5 {[%emt 0:00:17]} g5 {[%emt 0:00:00]} 56. Nd5 {[%emt 0:00:36]} Bf5 {[%emt 0:00:00]} 57. Qe3 {[%emt 0:00:42]} Ra7 {[%emt 0:00:00]} 58. Kb6 {[%emt 0:00:27]} Rd7 {[%emt 0:00:00]} 59. Nf6+ {[%emt 0:00:11]} 1-0

[Event "6th Tulsi Lal Memorial NTCC 2080"]
[Site "Lalitpur"]
[Date "2024.01.11"]
[Round "7.8"]
[White "Gautam, Anushna"]
[Black "Demanraura, Ayush"]
[Result "1-0"]
[ECO "C54"]
[WhiteElo "1400"]
[BlackElo "1410"]
[Annotator "NA RC COMBH"]
[PlyCount "73"]
[EventDate "2024.01.03"]
[EventType "team-tourn"]
[EventCountry "NEP"]
[SourceTitle "playchess.com"]
[Source "ChessBase"]
[SourceQuality "1"]
[TimeControl "5400+30"]

1. e4 {[%emt 0:00:03]} e5 {[%emt 0:00:28]} 2. Nf3 {[%emt 0:00:09]} Nc6 {[%emt 0:00:09]} 3. Bc4 {[%emt 0:00:27]} Bc5 {[%emt 0:00:20]} 4. c3 {[%emt 0:00:09]} Nf6 {[%emt 0:00:33]} 5. d3 {[%emt 0:00:11]} d6 {[%emt 0:00:48]} 6. a4 {[%emt 0:00:09]} a5 {[%emt 0:00:57]} 7. O-O {[%emt 0:00:16]} O-O {[%emt 0:02:24]} 8. Bg5 {[%emt 0:01:15]} Be6 {[%emt 0:02:16]} 9. Nbd2 {[%emt 0:01:43]} Qe7 {[%emt 0:05:30]} 10. Re1 {[%emt 0:02:39]} Rad8 {[%emt 0:07:30]} 11. Qb3 {[%emt 0:05:03]} Bb6 {[%emt 0:01:55]} 12. Bxe6 {[%emt 0:01:11]} Qxe6 {[%emt 0:00:46]} 13. Nc4 {[%emt 0:01:27]} Ng4 {[%emt 0:09:59]} 14. Bxd8 {[%emt 0:02:27]} Bxf2+ {[%emt 0:01:13]} 15. Kf1 {[%emt 0:00:20]} Bxe1 {[%emt 0:04:30]} 16. Bxc7 {[%emt 0:01:27]} Bxc3 {[%emt 0:19:30]} 17. Qxc3 {[%emt 0:00:15]} Qf6 {[%emt 0:02:45]} 18. Bxd6 {[%emt 0:01:04]} Re8 {[%emt 0:04:36]} 19. Ke1 {[%emt 0:03:23]} Nd4 {[%emt 0:01:58]} 20. Kd1 {[%emt 0:02:24]} Nxf3 {[%emt 0:03:28]} 21. gxf3 {[%emt 0:00:08]} Qxf3+ {[%emt 0:00:12]} 22. Kc2 {[%emt 0:00:16]} Rc8 {[%emt 0:00:12]} 23. Kb3 {[%emt 0:00:21]} Nf2 {[%emt 0:07:58]} 24. Bxe5 {[%emt 0:02:22]} Nxd3 {[%emt 0:04:38]} 25. Bxg7 {[%emt 0:00:36]} Nc5+ {[%emt 0:09:42]} 26. Ka2 {[%emt 0:00:53]} Qxc3 {[%emt 0:00:56]} 27. Bxc3 {[%emt 0:00:14]} Nxa4 {[%emt 0:00:12]} 28. Rg1+ {[%emt 0:00:17]} Kf8 {[%emt 0:01:05]} 29. Bg7+ {[%emt 0:00:07]} Ke7 {[%emt 0:02:11]} 30. Ne3 {[%emt 0:00:41]} b5 {[%emt 0:02:10]} 31. Rf1 {[%emt 0:00:15]} Nb6 {[%emt 0:00:36]} 32. Rf5 {[%emt 0:00:12]} Nc4 {[%emt 0:02:34]} 33. Nxc4 {[%emt 0:00:37]} Rxc4 {[%emt 0:00:07]} 34. Rxb5 {[%emt 0:00:12]} Rxe4 {[%emt 0:00:55]} 35. Re5+ {[%emt 0:00:19]} Rxe5 {[%emt 0:01:44]} 36. Bxe5 {[%emt 0:00:31]} Kd7 {[%emt 0:00:16]} 37. Ka3 {[%emt 0:00:11]} 1-0